bitfinex-derivatives/quotes_SOLF0:USTF0_20250518
["timestamp","ask_amount","ask_price","bid_price","bid_amount"]
[1747584679678,134.2299,176.67,176.56,5.6617]
[1747584679878,134.2299,176.67,176.57,2.23372949]
[1747584680185,134.2299,176.67,176.58,2.2336823]
[1747584680382,134.2299,176.67,176.56,5.6617]
[1747584680584,5.6605,176.61,176.57,2.23584458]
[1747584680787,134.2299,176.67,176.54,3.8381]
[1747584680983,64.16,176.66,176.55,2.23596798]
[1747584681289,5.6609,176.6,176.56,2.23596798]
[1747584681482,5.6609,176.6,176.54,5.6623]
[1747584681683,5.6609,176.6,176.55,2.23629039]
[1747584681883,5.6609,176.6,176.56,2.23629039]
[1747584682083,5.6609,176.6,176.54,5.6623]
[1747584682277,5.6609,176.6,176.55,7.89825379]
[1747584682477,5.6609,176.6,176.56,2.23615379]
[1747584682676,5.6609,176.6,176.53,128.52]
[1747584682880,64.16,176.61,176.54,2.23575584]
[1747584683083,5.7795,176.6,176.48,71.48858545]
[1747584683288,5.7795,176.6,176.49,7.90145789]
[1747584683586,5.7795,176.6,176.5,2.23745789]
[1747584683786,5.7795,176.6,176.51,2.23745789]
[1747584683982,5.6634,176.52,176.48,69.52328545]
[1747584684293,5.6634,176.52,176.49,2.23802766]
[1747584684493,5.6634,176.52,176.5,2.23802766]
[1747584684677,5.6634,176.52,176.51,2.23802766]
[1747584684882,64.14,176.54,176.51,2.23802766]
[1747584685077,64.14,176.54,176.48,5.20328545]
[1747584685290,64.14,176.54,176.5,5.6636]
[1747584685484,64.14,176.54,176.51,2.23843245]
[1747584685785,64.14,176.54,176.47,64.14]
[1747584685986,64.12,176.57,176.48,2.23507974]
[1747584686183,64.12,176.57,176.49,3.65147309]
[1747584686388,64.12,176.57,176.5,2.23507974]
[1747584686689,5.6619,176.56,176.52,5.6629]
[1747584686889,5.6619,176.56,176.53,2.23507974]
[1747584687186,5.6619,176.56,176.52,5.6629]
[1747584687386,5.7795,176.6,176.53,2.23641737]
[1747584687588,64.32,176.61,176.5,20.02206919]
[1747584687890,128.42,176.62,176.51,2.23618092]
[1747584688190,128.42,176.62,176.52,66.33618092]
[1747584688491,128.42,176.62,176.53,2.23618092]
[1747584688688,128.42,176.62,176.54,2.23618092]
[1747584688989,5.6613,176.58,176.55,2.23618092]
[1747584689187,5.6613,176.58,176.56,2.23618092]
[1747584689383,5.6613,176.58,176.57,2.23618092]
[1747584689685,5.6609,176.59,176.57,2.23618092]
[1747584689884,5.6609,176.59,176.53,5.18784585]
[1747584690086,5.6609,176.59,176.54,3.65241916]
[1747584690385,5.6609,176.59,176.55,2.23631575]
[1747584690593,5.6609,176.59,176.56,2.23631575]
[1747584690794,5.6609,176.59,176.57,2.23631575]
[1747584690985,5.6609,176.59,176.52,64.1]
[1747584691187,5.6607,176.6,176.53,2.23698123]
[1747584691386,5.6607,176.6,176.54,2.23698123]
[1747584691595,5.6607,176.6,176.55,2.23825472]
[1747584691789,5.6607,176.6,176.56,7.89985472]
[1747584691986,5.6607,176.6,176.57,2.23825472]
[1747584692199,5.6604,176.61,176.56,5.6616]
[1747584692490,5.6604,176.61,176.57,2.23849961]
[1747584692679,5.6604,176.61,176.52,64.1]
[1747584692885,5.6604,176.61,176.53,2.2387343]
[1747584693187,5.6604,176.61,176.54,3.65483055]
[1747584693382,64.06,176.64,176.55,2.2387343]
[1747584693587,64.06,176.64,176.56,3.65483055]
[1747584693797,64.06,176.64,176.57,2.2387343]
[1747584693986,64.06,176.64,176.58,2.23840739]
[1747584694189,64.06,176.64,176.56,1.41609625]
[1747584694492,5.6602,176.62,176.57,5.6615]
[1747584695191,5.6597,176.63,176.58,5.6612]
[1747584695895,5.66,176.62,176.59,2.23809647]
[1747584696195,64.06,176.64,176.56,1.41609625]
[1747584696598,5.6605,176.61,176.56,1.41609625]
[1747584696795,5.6605,176.61,176.6,2.23774608]
[1747584697091,5.6599,176.63,176.56,1.41609625]
[1747584697299,64.06,176.64,176.57,2.23844445]
[1747584697489,64.06,176.64,176.58,2.23844445]
[1747584697689,5.6607,176.6,176.59,2.23844445]
[1747584697890,5.6607,176.6,176.53,65.883]
[1747584698094,5.6607,176.6,176.54,2.23896882]
[1747584698285,64.02,176.59,176.55,2.23896882]
[1747584698489,64.02,176.59,176.5,3.7518]
[1747584698691,5.6619,176.56,176.51,3.65706206]
[1747584698892,5.6619,176.56,176.55,5.18485122]
[1747584699192,5.6619,176.56,176.55,7.42546362]
[1747584699395,5.6619,176.56,176.55,5.18485122]
[1747584700098,5.6622,176.55,176.5,5.6638]
[1747584700296,5.6622,176.55,176.51,2.23718047]
[1747584700494,1.9258,176.58,176.52,2.23718047]
[1747584700687,1.9258,176.58,176.53,2.23718047]
[1747584700892,1.9258,176.58,176.54,2.23718047]
[1747584701192,5.6624,176.55,176.49,5.6638]
[1747584701398,1.9258,176.58,176.5,2.23777579]
[1747584701604,1.9258,176.58,176.52,5.6631]
[1747584701793,1.9258,176.58,176.53,3.65430296]
[1747584702092,67.9915,176.59,176.54,2.23777579]
[1747584702294,67.9915,176.59,176.55,2.23777579]
[1747584702595,67.9915,176.59,176.56,2.23777579]
[1747584702797,69.8771,176.59,176.48,64.08]
[1747584702997,69.8771,176.59,176.5,5.6638]
[1747584703199,64.0,176.58,176.51,2.23962093]
[1747584703399,5.6621,176.56,176.52,2.23962093]
[1747584703598,5.6621,176.56,176.53,2.23962093]
[1747584703794,64.0,176.58,176.54,2.23962093]
[1747584703995,64.0,176.58,176.55,2.23962093]
[1747584704292,64.0,176.58,176.52,5.17550969]
[1747584704500,64.0,176.58,176.53,3.65638695]
[1747584704695,64.0,176.58,176.54,2.23989961]
[1747584704900,64.0,176.58,176.55,2.24025727]
[1747584705090,64.0,176.58,176.52,5.17550969]
[1747584705298,64.0,176.58,176.53,2.24019454]
[1747584705494,64.0,176.58,176.54,2.24019454]
[1747584705694,64.0,176.58,176.55,2.24019454]
[1747584705902,64.0,176.58,176.56,2.24019454]
[1747584706107,5.6618,176.57,176.52,5.6628]
[1747584706295,5.6618,176.57,176.53,3.65612753]
[1747584706491,64.0,176.58,176.54,2.23971161]
[1747584706707,64.0,176.58,176.55,2.23971161]
[1747584706892,64.0,176.58,176.56,2.23971161]
[1747584707095,5.6616,176.57,176.52,5.663]
[1747584707298,64.0,176.58,176.53,2.23993416]
[1747584707598,5.6618,176.57,176.54,3.65629993]
[1747584707791,64.0,176.58,176.55,2.23993416]
[1747584707989,64.0,176.58,176.56,2.23993416]
[1747584708199,64.0,176.58,176.57,2.23993416]
[1747584708806,69.6612,176.58,176.57,2.23993416]
[1747584709205,5.6612,176.58,176.57,2.23993416]
[1747584711794,5.662,176.56,176.48,79.45705113]
[1747584712704,5.6617,176.57,176.48,79.45705113]
[1747584712909,5.6617,176.57,176.49,3.65753119]
[1747584713106,5.6617,176.57,176.52,5.6629]
[1747584713307,5.6617,176.57,176.53,2.241189]
[1747584713500,5.6617,176.57,176.54,2.241189]
[1747584713699,5.6613,176.58,176.55,2.241189]
[1747584713899,5.6613,176.58,176.56,2.241189]
[1747584714108,5.6613,176.58,176.57,2.241189]
[1747584715114,64.08,176.6,176.57,2.241189]
[1747584715302,64.08,176.6,176.5,5.6638]
[1747584715502,64.08,176.6,176.48,69.28328545]
[1747584715904,64.08,176.6,176.5,5.6635]
[1747584716209,64.08,176.6,176.51,1.41648263]
[1747584716407,5.6453,176.59,176.51,1.41648263]
[1747584716606,5.663,176.53,176.52,1.41648263]
[1747584720219,63.94,176.57,176.52,1.41648263]
[1747584720413,63.94,176.57,176.53,1.41648263]
[1747584720913,63.94,176.57,176.47,69.30328545]
[1747584721412,63.94,176.57,176.48,1.41648469]
[1747584721630,5.6631,176.53,176.48,7.08078469]
[1747584721914,5.6631,176.53,176.49,1.41648469]
[1747584722106,5.6632,176.52,176.49,1.41648469]
[1747584722419,63.92,176.57,176.5,1.41648469]
[1747584722711,63.92,176.57,176.51,5.16709666]
[1747584723215,5.663,176.53,176.52,1.41648469]
[1747584725007,5.663,176.53,176.52,6.58358135]
[1747584726217,5.663,176.53,176.52,1.41648469]
[1747584726608,5.6643,176.49,176.47,5.20328545]
[1747584727314,5.6643,176.49,176.48,2.18504581]
[1747584727514,5.6643,176.49,176.48,3.60177475]
[1747584727718,5.6643,176.49,176.48,1.41672894]
[1747584728015,63.9,176.52,176.48,1.41672894]
[1747584728208,5.6638,176.5,176.47,5.20328545]
[1747584728607,5.6638,176.5,176.48,5.17330865]
[1747584728809,5.6638,176.5,176.49,3.59942177]
[1747584730109,63.92,176.55,176.49,8.77273042]
[1747584730308,63.92,176.55,176.5,3.59942177]
[1747584730505,5.6632,176.52,176.51,2.18268994]
[1747584730917,5.6632,176.52,176.51,3.59942177]
[1747584731614,63.92,176.55,176.51,3.59942177]
[1747584731917,63.92,176.55,176.52,2.18399381]
[1747584732115,63.92,176.55,176.53,2.18399381]
[1747584732318,69.5822,176.55,176.54,2.18399381]
[1747584733219,5.6619,176.56,176.54,2.18399381]
[1747584733524,5.6619,176.56,176.55,2.18399381]
[1747584734013,5.6619,176.56,176.55,3.6002431]
[1747584734212,5.6616,176.57,176.55,3.6002431]
[1747584734412,5.6616,176.57,176.56,3.6002431]
[1747584734817,63.94,176.59,176.56,3.6002431]
[1747584735017,63.94,176.59,176.57,2.18399381]
[1747584735316,69.6009,176.59,176.58,2.18399381]
[1747584736318,63.94,176.59,176.49,5.20328545]
[1747584736627,63.94,176.59,176.5,1.41649563]
[1747584737023,5.6623,176.55,176.51,1.41649563]
[1747584737424,63.94,176.59,176.51,1.41649563]
[1747584737823,63.94,176.59,176.5,5.6637]
[1747584737824,63.94,176.59,176.52,1.41649563]
[1747584738024,63.94,176.59,176.52,6.5739546]
[1747584738225,63.94,176.59,176.53,1.41649563]
[1747584738625,63.94,176.59,176.54,1.41649563]
[1747584738827,5.6625,176.55,176.54,1.41649563]
[1747584739026,5.6625,176.55,176.52,5.15745897]
[1747584739027,63.94,176.59,176.52,5.15745897]
[1747584739221,63.94,176.59,176.49,5.6639]
[1747584739521,5.6627,176.54,176.49,5.6639]
[1747584739825,5.6624,176.55,176.5,1.41642148]
[1747584740025,63.94,176.59,176.5,1.41642148]
[1747584740226,63.94,176.59,176.5,7.07992148]
[1747584740424,5.6622,176.55,176.48,13.96706568]
[1747584740630,63.94,176.59,176.48,13.96706568]
[1747584740815,5.6615,176.58,176.51,10.17376568]
[1747584741019,63.92,176.63,176.52,63.86]
[1747584741222,3.7542,176.67,176.58,10.17376568]
[1747584741528,127.78,176.71,176.6,5.6605]
[1747584741722,127.78,176.71,176.58,10.17376568]
[1747584741723,63.92,176.71,176.59,3.6304]
[1747584741918,63.92,176.71,176.61,10.17376568]
[1747584742128,5.6583,176.68,176.63,5.6596]
[1747584742328,63.92,176.71,176.62,129.6771]
[1747584743029,63.92,176.71,176.63,5.20515663]
[1747584743215,63.92,176.71,176.63,6.62038]
[1747584743422,69.5704,176.75,176.64,10.17376568]
[1747584743721,69.5704,176.75,176.66,5.6584]
[1747584743920,69.5704,176.75,176.63,5.20515663]
[1747584744128,69.5704,176.75,176.67,1.41519871]
[1747584744525,69.5704,176.75,176.63,5.20515663]
[1747584745426,5.6504,176.75,176.63,5.20515663]
[1747584745622,127.74,176.74,176.63,5.20515663]
[1747584746329,5.6593,176.64,176.63,5.20515663]
[1747584746526,127.72,176.68,176.6,63.92]
[1747584746725,5.6596,176.64,176.6,63.92]
[1747584747523,5.6596,176.64,176.61,1.4156779]
[1747584748131,5.6597,176.63,176.6,63.92]
[1747584748326,63.9,176.67,176.6,63.92]
[1747584748528,63.9,176.67,176.61,1.41567283]
[1747584748926,63.9,176.67,176.6,63.92]
[1747584750333,5.6594,176.64,176.6,63.92]
[1747584751136,5.659,176.65,176.6,63.92]
[1747584751333,63.9,176.67,176.6,63.92]
[1747584751639,5.6576,176.7,176.64,5.6593]
[1747584751833,63.78,176.71,176.61,1.8777]
[1747584752230,5.6582,176.68,176.61,1.8777]
[1747584752532,63.78,176.71,176.61,1.8777]
[1747584752932,63.78,176.71,176.61,129.4377]
[1747584753433,63.78,176.71,176.62,2.12454434]
[1747584753628,63.78,176.71,176.63,2.12454434]
[1747584753823,5.659,176.65,176.64,2.12454434]
[1747584754229,133.88,176.66,176.54,5.20328545]
[1747584754425,133.88,176.66,176.56,2.12294328]
[1747584754626,3.7776,176.65,176.54,5.20328545]
[1747584756134,3.7776,176.65,176.53,613.45744288]
[1747584756634,5.6617,176.57,176.53,613.45744288]
[1747584757141,5.6615,176.57,176.53,613.45744288]
[1747584757934,134.98,176.6,176.53,123.93744288]
[1747584758132,68.5,176.59,176.53,123.93744288]
[1747584758336,5.6625,176.54,176.49,72.1629]
[1747584758633,68.5,176.59,176.49,68.3702]
[1747584758828,5.6631,176.53,176.49,68.3702]
[1747584759740,3.6635,176.58,176.49,68.3702]
[1747584760227,5.6625,176.55,176.49,74.034]
[1747584760640,3.6635,176.58,176.49,68.3702]
[1747584760834,5.6626,176.54,176.49,68.3702]
[1747584761027,3.6635,176.58,176.49,68.3702]
[1747584761223,5.6622,176.55,176.49,68.3702]
[1747584761427,5.6622,176.55,176.5,5.6635]
[1747584761635,5.6622,176.55,176.49,68.3702]
[1747584762032,5.6625,176.54,176.49,74.0342]
[1747584762736,5.6629,176.53,176.49,68.3702]
[1747584763033,3.6635,176.58,176.49,66.48]
[1747584763435,5.6627,176.54,176.49,66.48]
[1747584763637,3.6635,176.58,176.49,66.48]
[1747584765041,5.6626,176.54,176.49,66.48]
[1747584765237,3.6635,176.58,176.47,5.6646]
[1747584765431,3.6635,176.58,176.47,66.5]
[1747584765629,5.6628,176.53,176.47,66.5]
[1747584766443,3.6635,176.58,176.48,5.6642]
[1747584766943,5.6627,176.54,176.48,5.6642]
[1747584767140,5.6627,176.54,176.45,1.8541]
[1747584767141,141.66,176.53,176.49,2.06952657]
[1747584767338,141.68,176.53,176.49,2.06952657]
[1747584767547,5.6638,176.5,176.49,2.06952657]
[1747584768333,5.6656,176.45,176.42,71.70328545]
[1747584768739,5.6656,176.45,176.42,5.20328545]
[1747584768945,5.6657,176.44,176.42,5.20328545]
[1747584769147,141.68,176.53,176.42,5.20328545]
[1747584769646,141.68,176.53,176.39,5.5491]
[1747584770044,5.6655,176.45,176.39,5.5491]
[1747584770345,5.6655,176.45,176.39,11.2164]
[1747584770546,5.6655,176.45,176.39,5.5491]
[1747584770845,70.82,176.48,176.39,5.5491]
[1747584771946,5.6655,176.45,176.39,11.2162]
[1747584772846,70.82,176.48,176.39,5.5491]
[1747584773446,70.86,176.51,176.37,70.58]
[1747584773744,70.58,176.5,176.39,3.774]
[1747584773948,5.6651,176.46,176.41,5.6667]
[1747584775049,5.6648,176.47,176.43,5.666]
[1747584775247,70.58,176.5,176.41,70.86]
[1747584775642,5.6647,176.48,176.43,5.6659]
[1747584776441,5.6649,176.47,176.43,5.6659]
[1747584776646,70.58,176.5,176.42,5.6663]
[1747584776845,70.58,176.5,176.41,70.86]
[1747584777350,5.6651,176.47,176.43,5.666]
[1747584777550,70.58,176.5,176.41,70.86]
[1747584777954,5.6651,176.46,176.42,5.6661]
[1747584778152,70.58,176.5,176.41,70.86]
[1747584778555,5.665,176.47,176.42,5.6661]
[1747584778946,70.58,176.5,176.41,70.86]
[1747584779453,70.58,176.5,176.41,76.5264]
[1747584779646,72.4144,176.5,176.41,76.5264]
[1747584780254,5.665,176.47,176.42,5.6662]
[1747584780557,72.4144,176.5,176.41,70.86]
[1747584780748,70.58,176.5,176.41,70.86]
[1747584780951,5.6643,176.49,176.41,70.86]
[1747584781260,70.86,176.51,176.41,70.86]
[1747584781554,5.6651,176.46,176.42,5.6663]
[1747584781755,70.86,176.51,176.41,70.86]
[1747584782058,5.6649,176.47,176.43,5.6658]
[1747584782857,5.6651,176.46,176.43,5.6658]
[1747584783660,5.6655,176.45,176.41,76.5264]
[1747584784057,5.6655,176.45,176.42,5.6663]
[1747584784257,5.6652,176.46,176.42,5.6663]
[1747584784461,70.86,176.51,176.42,5.6663]
[1747584785461,5.665,176.47,176.42,5.6663]
[1747584785763,70.86,176.51,176.42,5.6663]
[1747584785964,70.86,176.51,176.41,70.86]
[1747584786357,5.6642,176.49,176.41,70.86]
[1747584786772,70.86,176.51,176.41,70.86]
[1747584787566,5.6645,176.48,176.41,70.86]
[1747584787767,70.86,176.51,176.41,70.86]
[1747584788762,70.86,176.51,176.44,5.6657]
[1747584788963,70.86,176.51,176.41,70.86]
[1747584789169,5.6641,176.49,176.41,70.86]
[1747584789475,5.6641,176.49,176.42,2.00623152]
[1747584789771,5.6641,176.49,176.45,5.6653]
[1747584789973,5.6639,176.5,176.41,70.86]
[1747584790175,70.86,176.51,176.41,70.86]
[1747584790370,558.52,176.53,176.41,70.86]
[1747584790576,5.6639,176.5,176.41,70.86]
[1747584790775,5.6639,176.5,176.42,2.00673925]
[1747584790972,5.6639,176.5,176.43,70.86673925]
[1747584791170,5.6631,176.53,176.44,2.00833729]
[1747584791368,70.86,176.55,176.43,68.86]
[1747584791568,70.86,176.55,176.48,5.6642]
[1747584791979,5.6634,176.52,176.48,5.6642]
[1747584792279,70.86,176.55,176.47,76.5247]
[1747584792774,70.86,176.55,176.48,5.6643]
[1747584793074,70.86,176.55,176.47,70.86]
[1747584793278,5.6636,176.51,176.47,70.86]
[1747584793473,5.6636,176.51,176.47,76.5245]
[1747584793675,70.86,176.55,176.47,70.86]
[1747584795180,5.6634,176.52,176.47,70.86]
[1747584795482,70.86,176.55,176.47,70.86]
[1747584795682,5.6641,176.49,176.47,70.86]
[1747584795877,5.6641,176.49,176.43,139.72]
[1747584796584,68.44,176.51,176.43,139.72]
[1747584797274,5.6639,176.5,176.45,5.6652]
[1747584798586,68.44,176.51,176.43,139.72]
[1747584798884,70.0202,176.56,176.43,139.72]
[1747584799082,5.6627,176.54,176.43,139.72]
[1747584799383,68.28,176.57,176.44,19.68549037]
[1747584799587,68.28,176.57,176.45,3.93128582]
[1747584799789,68.28,176.57,176.47,10.17427171]
[1747584800084,68.28,176.57,176.48,138.1718]
[1747584800281,68.28,176.57,176.45,1.9074]
[1747584800479,68.28,176.57,176.48,5.17858147]
[1747584800887,68.28,176.57,176.49,3.44064948]
[1747584801079,68.28,176.57,176.5,2.02405881]
[1747584801278,68.28,176.57,176.46,138.1918]
[1747584801475,136.22,176.57,176.46,138.1918]
[1747584801875,136.22,176.57,176.47,5.6645]
[1747584802080,136.22,176.57,176.46,138.1918]
[1747584802386,136.22,176.57,176.47,1.4165858]
[1747584802592,136.22,176.57,176.48,5.6644]
[1747584803086,136.22,176.57,176.49,3.44157789]
[1747584803290,136.22,176.57,176.5,2.02498397]
[1747584803491,136.22,176.57,176.49,12.26370497]
[1747584803492,136.22,176.57,176.51,2.02498397]
[1747584803686,136.22,176.57,176.52,2.02498397]
[1747584803884,136.22,176.57,176.53,2.02498397]
[1747584804197,68.28,176.57,176.49,5.18301105]
[1747584804388,67.66,176.56,176.49,5.18301105]
[1747584804587,5.6627,176.54,176.5,5.18301105]
[1747584805094,73.3221,176.56,176.5,10.84671105]
[1747584805288,73.3221,176.56,176.51,3.44261815]
[1747584805489,5.6621,176.56,176.52,2.02602938]
[1747584805791,5.6621,176.56,176.53,2.02674428]
[1747584805984,5.6621,176.56,176.51,7.07988877]
[1747584806181,5.6621,176.56,176.52,9.10643236]
[1747584806388,5.6616,176.57,176.53,2.02674359]
[1747584806587,5.6616,176.57,176.54,2.02674359]
[1747584806789,5.6616,176.57,176.55,2.02674359]
[1747584806994,67.4,176.6,176.51,68.28]
[1747584807492,5.6628,176.54,176.51,68.28]
[1747584807693,67.4,176.6,176.51,68.28]
[1747584807891,67.4,176.6,176.46,69.9118]
[1747584807892,67.4,176.6,176.47,68.28]
[1747584808088,5.6628,176.53,176.52,5.18625285]
[1747584808281,5.6628,176.53,176.52,8.62877071]
[1747584809093,5.6628,176.53,176.52,5.18625285]
[1747584809788,5.6632,176.52,176.47,68.28]
[1747584809989,67.4,176.6,176.48,3.44393938]
[1747584810190,67.4,176.6,176.48,1.41662463]
[1747584810784,83.68315757,176.6,176.45,7.11068545]
[1747584810991,100.69315757,176.6,176.45,5.20328545]
[1747584811690,16.28315757,176.56,176.46,5.18989892]
[1747584811892,137.3227,176.55,176.46,5.18989892]
[1747584812296,3.7732,176.54,176.47,1.41698093]
[1747584812696,5.6644,176.48,176.47,1.41698093]
[1747584812896,66.96,176.5,176.46,5.18989892]
[1747584813197,66.96,176.5,176.47,3.44636801]
[1747584813397,66.96,176.5,176.48,2.02884296]
[1747584813598,5.6644,176.48,176.47,1.41698181]
[1747584813896,5.6644,176.48,176.47,3.44153434]
[1747584814099,5.6644,176.48,176.47,1.41698181]
[1747584814797,5.6648,176.47,176.41,1.821]
[1747584814998,66.96,176.5,176.41,1.821]
[1747584815199,66.96,176.5,176.39,75.80808545]
[1747584815699,5.665,176.47,176.42,5.6661]
[1747584816693,5.6651,176.46,176.43,5.19202089]
[1747584817096,5.6654,176.45,176.43,5.19202089]
[1747584817397,135.24,176.5,176.44,1.41697033]
[1747584818094,135.24,176.5,176.39,9.08808545]
[1747584818500,135.24,176.5,176.41,1.41711899]
[1747584819093,5.6656,176.45,176.39,14.75528545]
[1747584819294,135.24,176.5,176.39,14.75528545]
[1747584819696,135.24,176.5,176.41,5.20045378]
[1747584819903,5.666,176.44,176.41,5.20045378]
[1747584820097,135.24,176.5,176.41,5.20045378]
[1747584820602,5.666,176.44,176.42,3.44443182]
[1747584820801,5.666,176.44,176.42,1.41711908]
[1747584821001,5.666,176.44,176.43,5.20045378]
[1747584821802,5.666,176.44,176.43,6.61757264]
[1747584822006,5.666,176.44,176.43,5.20045378]
[1747584822599,5.666,176.44,176.43,7.22781085]
[1747584822805,5.666,176.44,176.43,6.61757315]
[1747584823105,5.666,176.44,176.43,5.20045378]
[1747584826002,134.28,176.45,176.39,5.20328545]
[1747584826202,5.667,176.4,176.39,5.20328545]
[1747584827607,5.667,176.4,176.39,2.21408545]
[1747584827804,71.527,176.4,176.39,8.545e-05]
[1747584829014,65.86,176.4,176.34,124.06663632]
[1747584829306,65.76,176.39,176.34,124.06663632]
[1747584829510,5.6686,176.35,176.34,124.06663632]
[1747584830403,5.6706,176.29,176.27,1.9915]
[1747584830602,65.68,176.33,176.27,1.9915]
[1747584830996,65.68,176.33,176.26,6.93771394]
[1747584831404,5.671,176.28,176.26,6.93771394]
[1747584831601,65.68,176.33,176.26,6.93771394]
[1747584832510,71.3495,176.33,176.27,5.6711]
[1747584832810,131.36,176.35,176.26,6.93771394]
[1747584833113,5.6692,176.34,176.28,5.6708]
[1747584833811,5.6693,176.33,176.28,5.6708]
[1747584835217,5.6698,176.32,176.27,5.6711]
[1747584835408,5.6698,176.32,176.25,1.8316]
[1747584836314,5.6698,176.32,176.28,5.6706]
[1747584836512,5.6698,176.32,176.25,1.8316]
[1747584836813,5.6698,176.32,176.28,5.6707]
[1747584837617,131.36,176.35,176.27,5.6711]
[1747584837917,131.36,176.35,176.25,1.8316]
[1747584838613,5.6714,176.27,176.25,1.8316]
[1747584838916,131.36,176.35,176.26,2.02039274]
[1747584839106,131.36,176.35,176.25,1.8316]
[1747584839312,5.6709,176.28,176.25,1.8316]
[1747584839713,131.36,176.35,176.25,1.8316]
[1747584839914,5.6706,176.29,176.25,1.8316]
[1747584840115,5.6706,176.29,176.25,7.5033]
[1747584840416,131.36,176.35,176.25,1.8316]
[1747584840617,5.6711,176.28,176.25,1.8316]
[1747584841613,5.6712,176.27,176.25,1.8316]
[1747584842006,5.6708,176.29,176.25,1.8316]
[1747584842417,130.82,176.3,176.22,3.7065]
[1747584843017,130.82,176.3,176.23,5.6722]
[1747584843018,5.671,176.28,176.23,5.6722]
[1747584843520,130.82,176.3,176.23,5.6722]
[1747584843707,130.82,176.3,176.2,65.9]
[1747584844226,130.82,176.3,176.18,5.674]
[1747584844517,130.82,176.3,176.17,3.9193]
[1747584844715,130.82,176.3,176.14,1.9078]
[1747584844917,490.1,176.29,176.14,1.9078]
[1747584845104,16.31830866,176.27,176.14,1.9078]
[1747584845305,1.134,176.26,176.14,1.9078]
[1747584845517,130.56,176.25,176.12,65.9]
[1747584845717,5.6745,176.17,176.12,65.9]
[1747584845917,5.6745,176.17,176.11,9.4661]
[1747584846417,5.6745,176.17,176.12,5.676]
[1747584846616,5.6741,176.18,176.11,3.79]
[1747584847014,5.6741,176.18,176.12,5.6759]
[1747584847222,5.6744,176.17,176.12,5.6759]
[1747584847515,64.66,176.19,176.12,5.6759]
[1747584847719,136.2533,176.21,176.11,3.79]
[1747584847906,130.58,176.21,176.11,3.79]
[1747584848113,130.58,176.21,176.15,5.6748]
[1747584848313,130.58,176.21,176.11,3.79]
[1747584848618,130.58,176.21,176.15,5.6748]
[1747584849020,130.58,176.21,176.11,3.79]
[1747584849317,130.58,176.21,176.11,9.4661]
[1747584849512,5.675,176.16,176.11,3.79]
[1747584849717,130.58,176.21,176.11,3.79]
[1747584850119,5.674,176.19,176.11,3.79]
[1747584850518,5.674,176.19,176.15,5.6748]
[1747584850719,5.6736,176.2,176.11,3.79]
[1747584850920,130.58,176.21,176.11,3.79]
[1747584851318,5.6741,176.18,176.14,5.6754]
[1747584851617,5.6741,176.18,176.11,3.79]
[1747584852225,130.58,176.21,176.11,3.79]
[1747584853223,130.58,176.21,176.11,9.4663]
[1747584853424,5.6754,176.14,176.11,3.79]
[1747584853613,130.58,176.21,176.11,3.79]
[1747584855026,130.58,176.21,176.11,9.4663]
[1747584855728,5.6747,176.17,176.11,9.4663]
[1747584855930,64.46,176.16,176.11,3.79]
[1747584856425,64.46,176.16,176.13,5.6755]
[1747584856926,64.46,176.16,176.11,3.79]
[1747584857630,64.46,176.16,176.13,5.6755]